Cogmind - Beta 10.2 --- EXPLORER MODE // 2021.09.30 @ 09:32:05 Player: Veritas Result: Self-destructed Performance ------------- Evolutions (6) 3000 Regions Visited (11) 2200 Robots Destroyed (135) 675 Value Destroyed (5436) 5436 Prototype IDs (19) 380 Alien Tech Used (2) 400 Bonus (362) 362 TOTAL SCORE: 12453 Bonus ------- High Alert Combat Kills 62 Met Zhirov 300 Cogmind --------- Core Integrity 1061/1150 Matter 421/500 Energy 295/295 System Corruption 2% Temperature Cool (-100) Movement Core (650) Ox12 Location -4/Factory Parts ------- > --- POWER (2) -------- Fusion Reactor > --- PROPULSION (4) --- (None) > --- UTILITY (12) ----- Cryofiber Web Advanced Heat Sink Advanced Heat Sink Medium Storage Unit High-capacity Matter Pod Advanced Signal Interpreter Targeting Computer Advanced System Shield > --- WEAPON (2) ------- Hardcell Cannon > --- INVENTORY (8) ---- Energy Well (500) Improved Sensor Array Hacking Suite System Guard Mini Drone Bay (3/3) Improved Arc Projector Dirty Datajack Peak State ------------ > --- POWER ------------ Fusion Reactor Light Antimatter Reactor > --- PROPULSION ------- Advanced Treads Improved Medium Treads > --- UTILITY ---------- Advanced Power Amplifier Cryofiber Web Advanced Heat Sink Advanced Heat Sink Medium Storage Unit High-capacity Matter Pod Advanced Signal Interpreter Targeting Computer Experimental Propulsion Shielding Advanced System Shield > --- WEAPON ----------- Enhanced Gauss Cannon Hardcell Cannon > --- INVENTORY -------- Energy Well Improved Sensor Array Hacking Suite System Guard Mini Drone Bay Improved Arc Projector Hardcell Cannon Dirty Datajack [Rating: 77] Favorites ----------- Power Enhanced Nuclear Core Engine Improved Ion Engine Power Core Enhanced Nuclear Core Reactor Fusion Reactor Propulsion Advanced Treads Treads Advanced Treads Leg Aluminum Leg Utility Medium Storage Unit Device Advanced Heat Sink Storage Medium Storage Unit Processor Targeting Computer Hackware Advanced System Shield Protection Hardened Medium Armor Plating Weapon Hardcell Cannon Energy Gun Plasma Rifle Ballistic Gun Gauss Rifle Ballistic Cannon Hardcell Cannon Launcher Rocket Array Special Melee Weapon Improved Datajack Build | -11 -10 -9 -8 -7 -6 -5 -5 -5 -5 -4 -4 ------- Run | Scr Mat Mat Mat Fac Fac Fac Upp Upp Zhi Pro Fac Slots Evolved 13 | . 1 2 2 2 2 2 . . . . 2 Power 1 | . . . 1 . . . . . . . . Propulsion 2 | . . 1 1 . . . . . . . . Utility 10 | . 1 1 . 2 2 2 . . . . 2 Weapon . | . . . . . . . . . . . . Parts Attached 85 | . 3 12 16 14 18 9 2 . 5 5 1 Power 17 | . 1 1 7 3 . 1 1 . 1 2 . Engine 8 | . . 1 7 . . . . . . . . Core 7 | . 1 . . 3 . 1 1 . . 1 . Reactor 2 | . . . . . . . . . 1 1 . Propulsion 12 | . . 4 2 1 5 . . . . . . Treads 11 | . . 3 2 1 5 . . . . . . Leg 1 | . . 1 . . . . . . . . . Wheel . | . . . . . . . . . . . . Hover . | . . . . . . . . . . . . Flight . | . . . . . . . . . . . . Utility 33 | . 1 2 5 5 6 6 1 . 4 3 . Device 21 | . 1 1 2 3 5 3 1 . 2 3 . Storage 2 | . . . . 1 . 1 . . . . . Processor 2 | . . 1 . . . 1 . . . . . Hackware 1 | . . . . . . . . . 1 . . Protection 7 | . . . 3 1 1 1 . . 1 . . Artifact . | . . . . . . . . . . . . Weapon 23 | . 1 5 2 5 7 2 . . . . 1 Energy Gun 5 | . 1 1 . . 3 . . . . . . Energy Cannon . | . . . . . . . . . . . . Ballistic Gun 9 | . . 4 2 2 1 . . . . . . Ballistic Cannon 6 | . . . . 2 1 2 . . . . 1 Launcher 1 | . . . . 1 . . . . . . . Special Weapon . | . . . . . . . . . . . . Impact Weapon . | . . . . . . . . . . . . Slashing Weapon . | . . . . . . . . . . . . Piercing Weapon . | . . . . . . . . . . . . Special Melee Weapon 2 | . . . . . 2 . . . . . . Unidentified Prototypes 9 | . . . . 3 . . . . 6 . . Parts Lost 18 | . . 3 . 1 2 . 1 4 . 3 4 Power 2 | . . . . 1 . . . . . . 1 Propulsion 5 | . . . . . 1 . . 2 . 1 1 Utility 7 | . . 1 . . 1 . 1 2 . 2 . Weapon 4 | . . 2 . . . . . . . . 2 Highest Loss Streak 4 | . . 2 . 1 1 . 1 1 . 3 4 Average Slot Usage (%) 92 | . 95 92 98 97 99 100 99 88 80 80 64 Engine 2 | . 9 3 15 11 . . . . . . . Core 7 | . 2 6 . 1 12 11 11 11 9 4 4 Reactor 1 | . . . . . . . . . 1 6 5 Treads 17 | . . 2 32 27 24 22 22 15 11 8 4 Leg 2 | . 25 21 . . . . . . . . . Device 20 | . 8 13 7 14 24 27 26 25 22 18 15 Storage 10 | . 12 10 8 13 12 11 11 11 11 11 10 Processor 8 | . . 6 8 7 6 11 11 11 11 11 10 Hackware 1 | . . . . . . . . . 1 5 5 Protection 5 | . 12 10 7 7 6 5 5 2 1 2 . Energy Gun 1 | . 25 8 1 . 2 . . . . . . Ballistic Gun 3 | . . 10 14 7 3 . . . . . . Ballistic Cannon 7 | . . . . 6 6 10 11 11 11 11 9 Naked Turns . | . . . . . . . . . . . . Heaviest Build 74 | 15 19 23 34 44 54 74 74 73 71 71 60 Greatest Support 112 | 20 20 66 66 66 112 82 82 82 52 52 22 Greatest Overweight (x) 2 | . . . . . . . . 1 1 2 2 Average Overweight (x) . | . . . . . . . . . 1 1 2 Largest Inventory Capacity 8 | 8 8 8 8 8 8 8 8 8 8 8 8 Average Capacity 8 | 8 8 8 8 8 8 8 8 8 8 8 8 Most Carried 8 | 6 4 8 8 8 8 8 8 8 8 8 8 Average Carried 7 | 5 3 4 6 7 7 7 7 8 7 8 7 Final Capacity 8 | 8 8 8 8 8 8 8 8 8 8 8 8 Final Carried 8 | 4 3 5 8 8 8 8 8 8 8 8 7 Class Distribution -------------------- 100% | Hacker-Mutant Dominant Class ---------------- Hacker-Mutant | -10/Materials Hacker-Mutant | -9/Materials Hacker-Mutant | -8/Materials Hacker-Mutant | -7/Factory Hacker-Mutant | -6/Factory Hacker-Mutant | -5/Factory Hacker-Mutant | -5/Upper Caves Hacker-Mutant | -5/Upper Caves Hacker-Mutant | -5/Zhirov Hacker-Mutant | -4/Proximity Caves Hacker-Mutant | -4/Factory Resources | -11 -10 -9 -8 -7 -6 -5 -5 -5 -5 -4 -4 ----------- Run | Scr Mat Mat Mat Fac Fac Fac Upp Upp Zhi Pro Fac Matter Collected 3781 | 180 50 154 835 348 649 574 275 286 . 430 . Remotely 2042 | . . . . 337 637 574 275 219 . . . Salvage Created 4956 | . 110 836 1505 277 958 390 203 199 . 227 251 Parts 273 | . 7 60 81 12 57 11 8 13 . 12 12 Haulers Intercepted 2 | . . 1 . . . . . . . . 1 Recyclers Shooed 4 | . . 3 . . 1 . . . . . . Parts Field Recycled . | . . . . . . . . . . . . Retrieved Matter . | . . . . . . . . . . . . Parts Self-Destructed . | . . . . . . . . . . . . Prevented . | . . . . . . . . . . . . Kills | -11 -10 -9 -8 -7 -6 -5 -5 -5 -5 -4 -4 ------- Run | Scr Mat Mat Mat Fac Fac Fac Upp Upp Zhi Pro Fac Combat Hostiles Destroyed 104 | . 2 17 24 7 20 8 8 9 . 8 1 Guns 45 | . 2 12 24 1 6 . . . . . . Cannons 54 | . . . . 6 14 8 8 9 . 8 1 AOE 3 | . . 3 . . . . . . . . . Classes Destroyed 14 | . 1 6 4 1 . 1 . . . 1 . Worker 3 | . . . 2 . . . . . . . 1 Builder 5 | . . 2 2 . . . . . . . 1 Hauler 2 | . . 1 . . . . . . . . 1 Recycler 5 | . . 3 2 . . . . . . . . Operator 1 | . . . . . . 1 . . . . . Watcher 15 | . . 2 1 . 8 3 . . . . 1 Swarmer 24 | . . 9 . 1 2 . 4 5 . 3 . Grunt 38 | . 2 5 12 1 7 2 4 3 . 2 . Brawler 3 | . . . 1 1 . 1 . . . . . Duelist 3 | . . . 1 . . 1 . . . 1 . Sentry 23 | . . 3 9 3 4 2 . 1 . 1 . Hunter 2 | . . . 1 . 1 . . . . . . Programmer 10 | . . . . 1 6 2 . . . . 1 Behemoth 1 | . . . . . . . . . . 1 . Best Kill Streak 13 | . 2 13 8 3 5 4 4 3 . 3 5 Combat Bots Only 5 | . 2 4 5 3 5 4 4 3 . 3 1 Max Kills in Single Turn 4 | . 1 3 2 1 2 1 1 2 . 1 4 Gunslinging . | . . . . . . . . . . . . Exploded 2 | . . 2 . . . . . . . . . Melee . | . . . . . . . . . . . . Uniques/NPCs Destroyed . | . . . . . . . . . . . . Combat | -11 -10 -9 -8 -7 -6 -5 -5 -5 -5 -4 -4 -------- Run | Scr Mat Mat Mat Fac Fac Fac Upp Upp Zhi Pro Fac Damage Taken 4876 | . 90 438 718 397 1196 336 196 487 . 657 361 Core 506 | . . 65 74 26 157 . . 23 . 72 89 Absorbed by Shields . | . . . . . . . . . . . . Core Remaining (%) 90 | 100 100 83 86 96 81 . . . . 84 . Volleys Fired 309 | . 8 59 57 20 72 25 15 22 . 22 9 Largest 2 | . 2 2 2 2 2 2 2 2 . 2 2 Hottest 140 | . 80 90 56 76 140 122 122 122 . 122 130 Shots Fired 598 | . 16 108 114 38 142 50 30 44 . 44 12 Gun 326 | . 16 108 114 18 70 . . . . . . Cannon 272 | . . . . 20 72 50 30 44 . 44 12 Launcher . | . . . . . . . . . . . . Special . | . . . . . . . . . . . . Kinetic 496 | . . 59 114 38 105 50 30 44 . 44 12 Thermal 68 | . 8 23 . . 37 . . . . . . Explosive . | . . . . . . . . . . . . Electromagnetic 34 | . 8 26 . . . . . . . . . Robot Hit Streak 61 | . 9 17 28 30 43 61 34 27 . 39 40 Robot Miss Streak 3 | . 1 3 1 1 2 1 2 1 . . 1 Penetration Max 1 | . . . 1 . 1 . . 1 . . . Secondary Targets 3 | . 1 1 1 . . . . . . . . Max Gunslinging Chain 1 | . 1 1 1 . . . . . . . . Shots Hit Robots 505 | . 13 87 94 35 125 43 22 39 . 38 9 Core Hits 245 | . 5 42 45 14 46 25 12 12 . 16 28 Critical Hits 26 | . . . 4 2 7 2 3 4 . 4 . Critical Kills 13 | . . . 2 1 5 . 1 2 . 2 . Critical Parts Destroyed 12 | . . . 2 1 2 2 2 2 . 1 . Melee Attacks . | . . . . . . . . . . . . Impact . | . . . . . . . . . . . . Slashing . | . . . . . . . . . . . . Piercing . | . . . . . . . . . . . . Sneak Attacks . | . . . . . . . . . . . . Combat Hostiles . | . . . . . . . . . . . . Follow-up Attacks . | . . . . . . . . . . . . Damage Inflicted 14516 | . 160 1280 2168 864 3962 1648 773 1508 . 1338 815 Guns 5187 | . 160 922 2168 373 1564 . . . . . . Cannons 8506 | . . . . 491 2398 1565 773 1508 . 1338 433 Explosions 823 | . . 358 . . . 83 . . . . 382 Melee . | . . . . . . . . . . . . Ramming . | . . . . . . . . . . . . Kinetic 12224 | . . 370 2168 864 3205 1565 773 1508 . 1338 433 Thermal 1474 | . 64 599 . . 757 54 . . . . . Explosive . | . . . . . . . . . . . . Electromagnetic 818 | . 96 311 . . . 29 . . . . 382 Impact . | . . . . . . . . . . . . Slashing . | . . . . . . . . . . . . Piercing . | . . . . . . . . . . . . Highest Corruption 11 | . . . . 11 3 . . . . . 2 Average Corruption 4 | . . . . 5 2 . . . . . 1 Corruption Purged . | . . . . . . . . . . . . Effects 24 | . . . . 16 7 . . . . . 1 Message Errors 5 | . . . . 3 2 . . . . . . Matter Fused 5 | . . . . 3 2 . . . . . . Heat Flow Errors 4 | . . . . 2 2 . . . . . . Energy Discharges 3 | . . . . 3 . . . . . . . Data Loss (minor) 2 | . . . . 2 . . . . . . . Targeting Errors 3 | . . . . 1 1 . . . . . 1 Weapon Failures 2 | . . . . 2 . . . . . . . Overload Shots . | . . . . . . . . . . . . Overflow Damage 356 | . . 4 . . 131 72 11 74 . 48 16 Projectiles 352 | . . . . . 131 72 11 74 . 48 16 Explosions 4 | . . 4 . . . . . . . . . Melee . | . . . . . . . . . . . . Knockbacks 67 | . . . . . 20 13 8 11 . 11 4 Impact . | . . . . . . . . . . . . Kinetic 66 | . . . . . 20 13 8 11 . 10 4 Secondary 1 | . . . . . . . . . . 1 . Self-Inflicted Damage 110 | . . 56 . . . 54 . . . . . Shots 7 | . . 3 . . . 4 . . . . . Rammed . | . . . . . . . . . . . . Targets Rammed . | . . . . . . . . . . . . Kicked . | . . . . . . . . . . . . Crushed . | . . . . . . . . . . . . Highest Temperature 425 | . 183 10 2 217 425 . 35 . . . . Average Temperature 116 | . 86 3 2 87 153 . 18 . . . . Received Heat Transfer 1866 | . 39 168 432 222 522 108 54 204 . 117 . Effects 2 | . . . . . 2 . . . . . . Energy Bleed 2 | . . . . . 2 . . . . . . Siege Activations . | . . . . . . . . . . . . Robots Corrupted 2 | . . 2 . . . . . . . . . Combat Hostiles 2 | . . 2 . . . . . . . . . Parts Fried 3 | . . 3 . . . . . . . . . Impact Corruptions . | . . . . . . . . . . . . Robots Melted . | . . . . . . . . . . . . Combat Hostiles . | . . . . . . . . . . . . Parts Melted 6 | . . 2 . . 3 1 . . . . . Heat Transferred 3103 | . 150 1203 . . 1700 50 . . . . . Parts Sabotaged . | . . . . . . . . . . . . Parts Stolen . | . . . . . . . . . . . . Parts Stripped . | . . . . . . . . . . . . Power Chain Reactions 4 | . . 4 . . . . . . . . . Missiles Intercepted . | . . . . . . . . . . . . Alert | -11 -10 -9 -8 -7 -6 -5 -5 -5 -5 -4 -4 ------- Run | Scr Mat Mat Mat Fac Fac Fac Upp Upp Zhi Pro Fac Peak Influence 527 | . 50 493 527 290 243 288 . . . . 89 Initial 127 | . . 14 50 127 19 84 . . . . . Average 129 | . 14 163 192 158 111 102 . . . . 17 Maximum Alert Level 2 | . . 2 2 1 1 1 . . . . . Low Security (%) 77 | 100 100 74 61 60 82 86 . . . . 100 Level 1 19 | . . 20 27 39 17 13 . . . . . Level 2 2 | . . 5 11 . . . . . . . . Level 3 . | . . . . . . . . . . . . Level 4 . | . . . . . . . . . . . . Level 5 . | . . . . . . . . . . . . High Security . | . . . . . . . . . . . . Max Security . | . . . . . . . . . . . . Squads Dispatched 19 | . . . 3 4 9 2 . . . . 1 Investigation 6 | . . . 1 . 4 . . . . . 1 Extermination 6 | . . . . 1 4 1 . . . . . Reinforcement 2 | . . . 1 . 1 . . . . . . Assault . | . . . . . . . . . . . . Garrison 5 | . . . 1 3 . 1 . . . . . Intercept . | . . . . . . . . . . . . Construction Impeded . | . . . . . . . . . . . . Haulers Reinforced . | . . . . . . . . . . . . Stealth | -11 -10 -9 -8 -7 -6 -5 -5 -5 -5 -4 -4 --------- Run | Scr Mat Mat Mat Fac Fac Fac Upp Upp Zhi Pro Fac Distress Signals 14 | . . 6 4 . 3 . . . . . 1 Communications Jammed . | . . . . . . . . . . . . Distress Signals . | . . . . . . . . . . . . Times Spotted 161 | . 2 25 36 7 39 15 8 16 . 8 5 Peak Tracking Total 7 | . 2 5 7 3 5 4 4 5 . 3 5 Tactical Retreats 15 | . . 3 . . 7 1 . 4 . . . Traps | -11 -10 -9 -8 -7 -6 -5 -5 -5 -5 -4 -4 ------- Run | Scr Mat Mat Mat Fac Fac Fac Upp Upp Zhi Pro Fac Traps Triggered 12 | . 2 . 1 1 7 . . . . . 1 Indirectly 1 | . . . . . . . . . . . 1 Trap Hack Attempts 7 | . . . . . 7 . . . . . . Triggered . | . . . . . . . . . . . . Disarmed 1 | . . . . . 1 . . . . . . Reprogrammed 2 | . . . . . 2 . . . . . . Reused . | . . . . . . . . . . . . Traps Extracted . | . . . . . . . . . . . . Installed . | . . . . . . . . . . . . Triggered 2 | . . 2 . . . . . . . . . Machines | -11 -10 -9 -8 -7 -6 -5 -5 -5 -5 -4 -4 ---------- Run | Scr Mat Mat Mat Fac Fac Fac Upp Upp Zhi Pro Fac Machines Disabled 25 | . . . 1 . 2 10 . . . . 12 Max in Single Turn 5 | . . . 1 . 1 5 . . . . 5 Garrison Access 3 | . . . 1 . . 1 . . . . 1 Machines Sabotaged . | . . . . . . . . . . . . Garrisons Compromised . | . . . . . . . . . . . . Overloaded Fab Kills . | . . . . . . . . . . . . Fab Network Shutdowns . | . . . . . . . . . . . . Hacking | -11 -10 -9 -8 -7 -6 -5 -5 -5 -5 -4 -4 --------- Run | Scr Mat Mat Mat Fac Fac Fac Upp Upp Zhi Pro Fac Machines Accessed 45 | . . 7 5 3 10 5 3 1 9 1 1 Terminals 18 | . . 5 2 2 6 2 . . . 1 . Fabricators 2 | . . . . . 1 1 . . . . . Repair Stations 4 | . . . 1 1 2 . . . . . . Recycling Units 1 | . . 1 . . . . . . . . . Scanalyzers 4 | . . 1 1 . 1 1 . . . . . Garrison Access 3 | . . . 1 . . 1 . . . . 1 Total Hacks 144 | . . 16 22 8 25 16 5 1 48 1 2 Successful 116 | . . 11 20 4 12 13 5 1 48 1 1 Failed 28 | . . 5 2 4 13 3 . . . . 1 Catastrophic 2 | . . . . 2 . . . . . . . Database Lockouts . | . . . . . . . . . . . . Manual 31 | . . 9 8 1 10 3 . . . . . Terminals 49 | . . 13 8 5 16 6 . . . 1 . Fabricators 5 | . . . . . 2 3 . . . . . Repair Stations 13 | . . . 6 3 4 . . . . . . Recycling Units 1 | . . 1 . . . . . . . . . Scanalyzers 18 | . . 2 7 . 3 6 . . . . . Garrison Access 4 | . . . 1 . . 1 . . . . 2 Terminal Hacks 73 | . . 8 2 1 4 3 5 1 48 1 . Record 41 | . . . . . 1 . 3 . 36 1 . Part Schematic 5 | . . . . . . 1 . . 4 . . Robot Analysis 6 | . . . . . 1 1 . . 4 . . Prototype ID Bank 4 | . . . . . . . . . 4 . . Open Door 3 | . . . . . . . 2 1 . . . Terminal Index 5 | . . 1 1 1 1 1 . . . . . Recycling Unit Index 1 | . . 1 . . . . . . . . . Scanalyzer Index 1 | . . 1 . . . . . . . . . Alert Level 1 | . . 1 . . . . . . . . . Unreport Threat 1 | . . 1 . . . . . . . . . Locate Traps 3 | . . 1 1 . 1 . . . . . . Registered Components 1 | . . 1 . . . . . . . . . Zone Layout 1 | . . 1 . . . . . . . . . Fabricator Hacks 4 | . . . . . 1 3 . . . . . Network Status 1 | . . . . . . 1 . . . . . Load Schematic 1 | . . . . . . 1 . . . . . Build 2 | . . . . . 1 1 . . . . . Repair Station Hacks 12 | . . . 6 3 3 . . . . . . Scan Component 6 | . . . 3 1 2 . . . . . . Repair 5 | . . . 3 1 1 . . . . . . Refit 1 | . . . . 1 . . . . . . . Recycling Unit Hacks 1 | . . 1 . . . . . . . . . Report Inventory 1 | . . 1 . . . . . . . . . Scanalyzer 14 | . . 2 6 . . 6 . . . . . Insert Component 6 | . . 1 3 . . 2 . . . . . Analyze 8 | . . 1 3 . . 4 . . . . . Garrison Access Hacks 3 | . . . 1 . . 1 . . . . 1 Seal Access 3 | . . . 1 . . 1 . . . . 1 Unauthorized Hacks 9 | . . . 5 . 4 . . . . . . Terminals 6 | . . . 4 . 2 . . . . . . Assimilate 2 | . . . 1 . 1 . . . . . . Botnet 2 | . . . 2 . . . . . . . . Operators 2 | . . . 1 . 1 . . . . . . Fabricators 1 | . . . . . 1 . . . . . . Download 1 | . . . . . 1 . . . . . . Repair Stations . | . . . . . . . . . . . . Recycling Units . | . . . . . . . . . . . . Scanalyzers 2 | . . . 1 . 1 . . . . . . Extract 2 | . . . 1 . 1 . . . . . . Garrison Access . | . . . . . . . . . . . . Data Cores Recovered 1 | . . . . . . 1 . . . . . Used 1 | . . . . . . 1 . . . . . Hacking Detections 26 | . . 5 4 3 10 3 . . . 1 . Full Trace Events 1 | . . . . . 1 . . . . . . Feedback Events . | . . . . . . . . . . . . Feedback Blocked . | . . . . . . . . . . . . Robot Schematics Acquired . | . . . . . . . . . . . . Robots Built . | . . . . . . . . . . . . Matter . | . . . . . . . . . . . . Time . | . . . . . . . . . . . . Total Robot Build Rating . | . . . . . . . . . . . . Part Schematics Acquired 20 | . . 1 5 . 7 3 . . 4 . . Parts Built 4 | . . . . . 2 2 . . . . . Matter 424 | . . . . . 234 190 . . . . . Time 134 | . . . . . 39 95 . . . . . Total Part Build Rating 24 | . . . . . 14 10 . . . . . Parts Repaired 5 | . . . 3 1 1 . . . . . . Time 166 | . . . 90 38 38 . . . . . . Parts Recycled . | . . . . . . . . . . . . Recycled Matter . | . . . . . . . . . . . . Retrieved Matter . | . . . . . . . . . . . . Retrieved Components . | . . . . . . . . . . . . Parts Scanalyzed 6 | . . 1 3 . . 2 . . . . . Part Schematics Acquired 6 | . . 1 3 . . 2 . . . . . Parts Damaged 1 | . . . . . . 1 . . . . . Bothacking | -11 -10 -9 -8 -7 -6 -5 -5 -5 -5 -4 -4 ------------ Run | Scr Mat Mat Mat Fac Fac Fac Upp Upp Zhi Pro Fac Used RIF Installer . | . . . . . . . . . . . . Robots Hacked . | . . . . . . . . . . . . Non-combat . | . . . . . . . . . . . . Combat . | . . . . . . . . . . . . Robot Hacks Applied . | . . . . . . . . . . . . Relay Couplers Released . | . . . . . . . . . . . . Robots Rewired . | . . . . . . . . . . . . Allies Hacked . | . . . . . . . . . . . . Hacks Repelled . | . . . . . . . . . . . . Allies | -11 -10 -9 -8 -7 -6 -5 -5 -5 -5 -4 -4 -------- Run | Scr Mat Mat Mat Fac Fac Fac Upp Upp Zhi Pro Fac Total Allies . | . . . . . . . . . . . . Largest Group . | . . . . . . . . . . . . Highest-Rated Group . | . . . . . . . . . . . . Highest-Rated Ally . | . . . . . . . . . . . . Total Orders 4 | . . . . . . 4 . . . . . EXPLORE 3 | . . . . . . 3 . . . . . RETURN 1 | . . . . . . 1 . . . . . Ally Attacks . | . . . . . . . . . . . . Total Damage . | . . . . . . . . . . . . Kills . | . . . . . . . . . . . . Allies Corrupted . | . . . . . . . . . . . . Allies Melted . | . . . . . . . . . . . . Intel | -11 -10 -9 -8 -7 -6 -5 -5 -5 -5 -4 -4 ------- Run | Scr Mat Mat Mat Fac Fac Fac Upp Upp Zhi Pro Fac Robot Analysis Total 6 | . . . . . 1 1 . . 4 . . Derelict Logs Recovered 3 | . . . . . . . 2 . . 1 . Drone Launches 3 | . . . . . . 3 . . . . . Drone Recoveries 3 | . . . . . . 3 . . . . . Exploration | -11 -10 -9 -8 -7 -6 -5 -5 -5 -5 -4 -4 ------------- Run | Scr Mat Mat Mat Fac Fac Fac Upp Upp Zhi Pro Fac Turns Passed 9736 | 2 225 750 966 512 1902 876 1049 681 331 2278 164 Spaces Moved 5235 | 1 161 437 438 261 992 428 645 377 186 1236 73 Core . | . . . . . . . . . . . . Treads 4674 | . . 38 438 261 992 428 645 377 186 1236 73 Legs 561 | 1 161 399 . . . . . . . . . Wheels . | . . . . . . . . . . . . Hover . | . . . . . . . . . . . . Flight . | . . . . . . . . . . . . Fastest Speed 120 | 120 120 120 145 145 145 155 155 155 172 152 185 Average Speed 156 | 120 120 122 145 145 152 155 155 162 172 178 185 Slowest Speed 185 | 120 120 145 145 145 160 155 155 172 172 185 185 Overloaded Moves . | . . . . . . . . . . . . Propulsion Burnouts . | . . . . . . . . . . . . Robots Hopped . | . . . . . . . . . . . . Cave-ins Triggered . | . . . . . . . . . . . . Teleports 1 | . . . . . . . . . 1 . . Exploration Rate (%) 40 | 2 29 50 52 6 28 21 82 55 62 98 3 Regions Visited 11 Branch Regions 4 Pre-discovered Areas 4 | . . . . . . . 1 . 3 . . Known Exits Taken 11 | 1 1 1 1 1 1 1 1 1 1 1 . Unknown Exits Taken . | . . . . . . . . . . . . Scrap Searched 9 | . . . . . . . 5 1 . 3 . Spaces Dug . | . . . . . . . . . . . . Terrain Destroyed 77 | . . 14 2 4 5 29 11 5 . 6 1 Melee . | . . . . . . . . . . . . Projectile 39 | . . . 2 4 5 5 11 5 . 6 1 AOE 38 | . . 14 . . . 24 . . . . . Terrain Rammed . | . . . . . . . . . . . . Walls Destroyed . | . . . . . . . . . . . . Machines Disabled . | . . . . . . . . . . . . Actions | -11 -10 -9 -8 -7 -6 -5 -5 -5 -5 -4 -4 --------- Run | Scr Mat Mat Mat Fac Fac Fac Upp Upp Zhi Pro Fac Total 6225 | 3 177 557 656 355 1265 593 664 402 196 1268 89 Wait 486 | . . 29 122 48 163 114 . 2 . 2 6 Move 5224 | . 160 436 437 260 991 427 644 376 185 1235 73 Hop . | . . . . . . . . . . . . Pick Up 41 | . 3 11 11 2 5 7 1 1 . . . Fast Attach 41 | . . 5 7 10 5 2 2 . 7 3 . Attach 17 | . 1 5 3 2 3 2 . . . . 1 Detach 4 | . . 1 1 1 . . . . 1 . . Swap 29 | . 2 2 6 2 10 5 . . . 2 . Drop 66 | 3 3 9 12 10 9 10 2 1 3 4 . Fire 309 | . 8 59 57 20 72 25 15 22 . 22 9 Melee . | . . . . . . . . . . . . Ram . | . . . . . . . . . . . . Kick . | . . . . . . . . . . . . Crush . | . . . . . . . . . . . . Escape Stasis . | . . . . . . . . . . . . Rewire 1 | . . . . . . 1 . . . . . Trap 7 | . . . . . 7 . . . . . . Miscellaneous . | . . . . . . . . . . . . Route ------- -11/Scrapyard -10/Materials (discovered 2 exits: *Mat / *Min) -9/Materials (discovered 3 exits: *Mat x2 / *Min) -8/Materials -7/Factory (discovered 2 exits: *Fac / *Sto) -6/Factory -5/Factory -5/Upper Caves -5/Upper Caves (discovered 2 exits: *Fac / *Zhi) -5/Zhirov -4/Proximity Caves -4/Factory (discovered 2 exits: Res / Arm) History --------- Turn | Location | Event 3 | -11/Scrapyard | Identified exit to Materials 3 | -11/Scrapyard | Discovered exit to Materials (range 0) 3 | -11/Scrapyard | Entered Materials 3 | -10/Materials | Evolved 1 slot: Utility x1 111 | -10/Materials | Identified exit to Mines 111 | -10/Materials | Discovered exit to Mines (range 7) 147 | -10/Materials | Identified exit to Materials 147 | -10/Materials | Discovered exit to Materials (range 12) 228 | -10/Materials | Entered another Materials area 228 | -9/Materials | Evolved 2 slots: Propulsion x1, Utility x1 306 | -9/Materials | Build established: Hacker-Mutant 520 | -9/Materials | Identified exit to Mines 520 | -9/Materials | Discovered exit to Mines (range 5) 701 | -9/Materials | Identified exit to Materials 701 | -9/Materials | Discovered exit to Materials (range 16) 962 | -9/Materials | Discovered exit to Materials (range 12) 978 | -9/Materials | Entered another Materials area 978 | -8/Materials | Evolved 2 slots: Power x1, Propulsion x1 1036 | -8/Materials | Repaired Imp. Heat Sink 1063 | -8/Materials | Repaired Propulsion Shielding 1089 | -8/Materials | Repaired Lgt. Assault Rifle 1203 | -8/Materials | Garrison activated, responded to threat 1922 | -8/Materials | Identified exit to Factory 1922 | -8/Materials | Discovered exit to Factory (range 16) 1944 | -8/Materials | Entered Factory 1944 | -7/Factory | Evolved 2 slots: Utility x2 1969 | -7/Factory | Found Prototype Launcher 1969 | -7/Factory | Identified Rocket Array 2109 | -7/Factory | Garrison activated, responded to threat 2142 | -7/Factory | Identified exit to Storage 2142 | -7/Factory | Discovered exit to Storage (range 11) 2347 | -7/Factory | Repaired Adv. Treads 2406 | -7/Factory | System corruption reached 10% 2451 | -7/Factory | Identified exit to Factory 2451 | -7/Factory | Discovered exit to Factory (range 4) 2456 | -7/Factory | Entered another Factory area 2456 | -6/Factory | Evolved 2 slots: Utility x2 2672 | -6/Factory | Fabricated Hardcell Cannon (x2) 4274 | -6/Factory | Identified exit to Factory 4274 | -6/Factory | Discovered exit to Factory (range 7) 4349 | -6/Factory | Repaired Adv. Treads 4358 | -6/Factory | Entered another Factory area 4358 | -5/Factory | Evolved 2 slots: Utility x2 4518 | -5/Factory | Fabricated System Guard (x2) 4670 | -5/Factory | Garrison activated, responded to threat 5182 | -5/Factory | Identified exit to Upper Caves 5182 | -5/Factory | Discovered exit to Upper Caves (range 10) 5234 | -5/Factory | Entered Upper Caves 5270 | -5/Upper Caves | Learned 4 Factory zone layouts 5804 | -5/Upper Caves | Learned location of Armory (-4) 5804 | -5/Upper Caves | Learned location of 1 exit from Factory 6239 | -5/Upper Caves | Identified exit to Upper Caves 6239 | -5/Upper Caves | Discovered exit to Upper Caves (range 8) 6283 | -5/Upper Caves | Entered another Upper Caves area 6304 | -5/Upper Caves | Identified exit to Factory 6304 | -5/Upper Caves | Discovered exit to Factory (range 8) 6492 | -5/Upper Caves | Spotted B-75 Beast 6727 | -5/Upper Caves | Attracted the attention of an 0b10 checkpoint 6931 | -5/Upper Caves | Identified exit to Zhirov 6931 | -5/Upper Caves | Discovered exit to Zhirov (range 15) 6964 | -5/Upper Caves | Entered Zhirov 6964 | -5/Zhirov | Identified exit to Proximity Caves 6964 | -5/Zhirov | Discovered exit to Proximity Caves (range 3) 6995 | -5/Zhirov | Met Zhirov 7026 | -5/Zhirov | Learned location of Quarantine (-3) 7026 | -5/Zhirov | Learned location of Testing (-2) 7026 | -5/Zhirov | Learned location of Command (-1) 7063 | -5/Zhirov | Zhirov requested help retrieving the SGEMP Prototype 7088 | -5/Zhirov | Found Alien Artifact 7088 | -5/Zhirov | Identified Integrated Reactor 7088 | -5/Zhirov | Installed Integrated Reactor, increased core energy generation (+10) 7121 | -5/Zhirov | Found Alien Artifact 7121 | -5/Zhirov | Identified Transdimensional Reconstructor 7121 | -5/Zhirov | Warped through subspace 7295 | -5/Zhirov | Entered Proximity Caves 7383 | -4/Proximity Caves | Attracted the attention of an 0b10 checkpoint 7893 | -4/Proximity Caves | Spotted B-86 Titan 8480 | -4/Proximity Caves | Destroyed B-86 Titan 8508 | -4/Proximity Caves | Lost 3 parts (1n2u) 9497 | -4/Proximity Caves | Discovered exit to Factory (range 9) 9573 | -4/Proximity Caves | Entered Factory 9573 | -4/Factory | Evolved 2 slots: Utility x2 9574 | -4/Factory | Identified exit to Armory 9575 | -4/Factory | Identified exit to Research 9737 | -4/Factory | Self-destructed Last Messages --------------- Loading 1 Armory entrance... Loading 1 Factory exit... Loading 4 Factory zones... 09638_ Connecting with Garrison Access... >>Seal Access door sealed. 09712_ Enh. Gauss Cannon destroyed. 09717_ System corrupted: Hardcell Cannon targeting data glitched. 09717_ Neutrino Reactor explodes. 09720_ P-70 Sage knocked back. 09723_ Destroyed Tesla Rifle. 09726_ P-70 Sage destroyed. 09726_ Hardcell Cannon destroyed. 09726_ Adv. Treads destroyed. 09729_ P-70 Sage knocked back. 09729_ Neutrino Core destroyed. 09733_ Destroyed Imp. Heat Sink. 09735_ P-70 Sage knocked back. [Achievement: I Think I Know What's Going On] [Achievement: Tester] Map ----- +----------------------------------------------------+ | ?????????????????????????????????????????????????? | | ?????????????????????????????????????????????????? | | ?????????????????????????????????????????????????? | | ?????????????????????????????????????????????????? | | ?????????????????????????????????????########????? | | ?????????????????????????????????????# #????? | | ?????????????????????????????????????# """" #????? | | ?????????????????????????????????????# """" #????? | | ?????????????????????????###########?# """" #????? | | ?????????????????????????# #?# """" #????? | | ?????????????????????????# """ #?# #????? | | ?????????????????????????# " """ #?####+###????? | | ?????????????????????????# "" """ #????# #??????? | | ?????????????????????????# G #????# #??????? | | ?????????????? ?????????# "" % ###### #??????? | | ?????????????? p ????????# " + #??????? | | ????????????? ???????# # #??????? | | ????????????? p p############+##### #??????? | | ???????????? #??????? | | ???????????? ####??????? | | ???????????? #?????????? | | ????????????? #?????????? | | ??????????????? [% #?????????? | | ????????????????+##; #?????????? | | ???????????????????# ########??? | | ???????????????????# @ #??? | | ???????????????????# #??? | | ???????????????????# #??? | | ???????????????????# #??? | | ???????????????????# #??? | | ???????????????????# ############+### #??? | | ???????????????????# ??????# # #??? | | ?????????????????? ??????# """" #######??? | | ????????????????? ??????# """" #????????? | | ??????????????? ??????# """" #????????? | | ?????????????? ??????# """" #????????? | | ??????????????? ??????# #????????? | | ???????????????#########???????# #????????? | | ???????????????????????????????# #????????? | | ???????????????????????????????# #????????? | | ???????????????????????????????##########????????? | | ?????????????????????????????????????????????????? | | ?????????????????????????????????????????????????? | | ?????????????????????????????????????????????????? | | ?????????????????????????????????????????????????? | | ?????????????????????????????????????????????????? | | ?????????????????????????????????????????????????? | | ?????????????????????????????????????????????????? | | ?????????????????????????????????????????????????? | | ?????????????????????????????????????????????????? | +----------------------------------------------------+ Best States ------------- Heat Dissipation 81 Energy Generation 59 Energy Capacity 510 Matter Stores 500 Matter Capacity 500 Sight Range 16 Robot Scan Range 13 Terrain Scan Range 14 Terrain Scan Density 10 Power Amplification 30 Base Temperature (-) 100 Armor Coverage 225 Resistance: KI 35 Resistance: TH 35 Resistance: EX 35 Resistance: EM 35 Resistance: I 35 Resistance: S 35 Resistance: P 35 Propulsion Shielding 90 Weapon Cycling 15 Evasion (%) 40 Targeting Accuracy 5 Recoil Reduction 4 Offensive Hacking 20 Defensive Hacking 14 Item Schematics ----------------- Imp. Flight Unit | -9/Materials | Scanalyzed Gauss Rifle | -8/Materials | Scanalyzed Cryofiber Web | -8/Materials | Scanalyzed Adv. Signal Interpreter | -8/Materials | Scanalyzed Lrg. Matter Pod | -8/Materials | Extracted Katana | -8/Materials | Extracted Hardcell Cannon | -6/Factory | Downloaded System Guard | -6/Factory | Extracted Cesium-ion Thruster | -6/Factory | Extracted Fusion Compressor | -6/Factory | Extracted Shock Absorption System | -6/Factory | Extracted Launcher Loader | -6/Factory | Extracted Insulated Plating | -6/Factory | Extracted Imp. Heavy Treads | -5/Factory | Hacked Imp. Sensor Array | -5/Factory | Scanalyzed Hacking Suite | -5/Factory | Scanalyzed Assault Drone Bay | -5/Zhirov | Free Exp. Heat Sink | -5/Zhirov | Free Exp. Optical Array | -5/Zhirov | Free Imp. Arc Thrower | -5/Zhirov | Free Robot Schematics ------------------ None Fabricated ------------ Hardcell Cannon | x2 | -6/Factory | Preloaded System Guard | x2 | -5/Factory Alien Tech Used ----------------- Integrated Reactor Transdimensional Reconstructor Achievements -------------- Alien Tech I Think I Know What's Going On Subspace Traveler Tester The Science Guy Challenges ------------ None Game ------ Seed SigixElectronWings Manual? 0 Play Time 01:43:40 Cumulative 30.4 hours Start 2021.09.29 @ 14:08:53 End 2021.09.30 @ 09:32:05 Sessions 2 Manual Loads 0 Difficulty Explorer Special Mode None Game No. 61 Rogue 6 Adventurer 2 Explorer 53 Win Type - Total 0 Types 0/0/0/0/0/0/0/0/0 Lore% 53 Gallery% 52 Achievement% 38 Wizard Run 0 Options --------- ASCII 0 Keyboard 0 Movement Mouse Keybinds 0 Fullscreen 1 Font 18/SmallcapsGlow Map View 76x50 Tactical HUD 1 Map Filters NONE Filters NONE Steam 1 RUN: b2a70914-1dfe-4953-a02a-ab7f4ed9bac9